Cogmind - Beta 16.1 @@@ ROGUE MODE // 2026.02.20 @ 13:52:24 Player: Xcalibur Result: Destroyed by Executioner with Helical Railgun Performance ------------- Evolutions (9) 4500 Regions Visited (22) 4400 Robots Destroyed (146) 730 Value Destroyed (6284) 6284 Prototype IDs (87) 1740 Alien Tech Used (1) 200 Bonus (5105) 5105 TOTAL SCORE: 22959 Bonus ------- High Alert Combat Kills 71 Follower Combat Kills 1038 Hunted by Unchained 500 Delivered SUBCON Basin 2000 Registered with UFD 300 Met Optimus in HQ 500 Met Data Miner 300 Met Zhirov 300 Met Optimus at Protoforge 1000 Friendly Fire -904 Cogmind --------- Core Integrity 0/1600 Matter 251/300 Energy 99/100 System Corruption 2% Temperature Cool (0) Movement Core (50) Location -1/Access Parts ------- > --- POWER (2) -------- (None) > --- PROPULSION (8) --- (None) > --- UTILITY (12) ----- Experimental Optical Array Experimental Targeting Computer Experimental Targeting Computer Experimental Core Analyzer Experimental Core Analyzer > --- WEAPON (3) ------- (None) > --- INVENTORY (5) ---- Stasis Canceller Cooled Phase Cannon Improved Potential Cannon Compact Linear Accelerator Peak State ------------ > --- POWER ------------ Light Antimatter Reactor Light Antimatter Reactor > --- PROPULSION ------- Impulse Thruster Impulse Thruster Impulse Thruster Array Impulse Thruster Array Cooled Q-thruster > --- UTILITY ---------- Experimental Coolant Injector Experimental Energy Well Experimental Optical Array Advanced Sensor Array Experimental Signal Interpreter Experimental Core Analyzer Experimental Core Analyzer Experimental Armor Integrity Analyzer Experimental Kinecellerator Centrium Medium Armor Plating Graphene Brace Makeshift Hacking Suite > --- WEAPON ----------- Concept XC Strikerail Concept XC Strikerail > --- INVENTORY -------- Transdimensional Reconstructor Cooled Phase Cannon Improved Potential Cannon Companion Sword [Rating: 200] Favorites ----------- Power Ion Engine Engine Ion Engine Power Core Micro Fission Core Reactor Light Antimatter Reactor Propulsion Light Treads Treads Light Treads Leg Aluminum Leg Wheel Wheel Hover Unit Gravmag Array Flight Unit Cooled VTOL Module Utility Large Storage Unit Device Improved Terrain Scanner Storage Large Storage Unit Processor Enhanced Optical Array Hackware System Shield Protection Improved Medium Armor Plating Weapon Battle Cannon Energy Gun Medium Laser Energy Cannon Subdweller Beam Cannon Ballistic Gun Concept XC Strikerail Ballistic Cannon Battle Cannon Launcher Rocket Launcher Special Weapon Mining Laser Slashing Weapon Companion Sword Piercing Weapon Plasma Lance Special Melee Weapon Advanced Datajack Build | -11 -10 -10 -8 -8 -6 -6 -6 -6 -5 -5 -5 -5 -5 -4 -4 -4 -3 -3 -2 -2 -2 -1 ------- Run | Yrd Mat Sub Rec Scr Fac Low Low Dat Pro Fac Upp Upp Zhi Pro Fac Ext Res Tes Res Qua Frg Acc Slots Evolved 18 | . . . . . 8 . . . . 2 . . . . 2 . 2 . 2 . . 2 Power 1 | . . . . . . . . . . . . . . . . . 1 . . . . . Propulsion 6 | . . . . . 3 . . . . 1 . . . . . . . . 1 . . 1 Utility 10 | . . . . . 5 . . . . 1 . . . . 2 . 1 . 1 . . . Weapon 1 | . . . . . . . . . . . . . . . . . . . . . . 1 Parts Attached 251 | 4 8 16 . 8 43 1 1 . . 16 2 2 3 1 13 16 8 16 27 3 51 12 Power 32 | . . 1 . 1 6 . . . . 4 . . 1 . . 2 2 1 5 1 7 1 Engine 3 | . . 1 . . 1 . . . . 1 . . . . . . . . . . . . Core 11 | . . . . 1 4 . . . . 2 . . 1 . . 1 1 . . . 1 . Reactor 18 | . . . . . 1 . . . . 1 . . . . . 1 1 1 5 1 6 1 Propulsion 60 | 3 1 4 . 3 12 . . . . 4 1 . 1 . . 4 2 2 11 . 8 4 Treads 4 | 2 . 2 . . . . . . . . . . . . . . . . . . . . Leg 3 | 1 . . . . . . . . . . . . . . . . . 1 . . 1 . Wheel 4 | . 1 2 . 1 . . . . . . . . . . . . . . . . . . Hover 10 | . . . . . 2 . . . . . . . 1 . . 4 2 . 1 . . . Flight 39 | . . . . 2 10 . . . . 4 1 . . . . . . 1 10 . 7 4 Utility 116 | 1 4 3 . 1 24 . 1 . . 8 1 . 1 . 10 8 4 10 9 1 25 5 Device 42 | 1 2 1 . . 8 . 1 . . 2 . . . . 6 2 2 5 3 1 5 3 Storage 6 | . 1 1 . . 2 . . . . . . . . . . . . 2 . . . . Processor 29 | . 1 . . . 3 . . . . 1 . . . . 1 3 2 3 2 . 13 . Hackware 19 | . . . . . 6 . . . . 5 1 . 1 . 1 . . . 4 . . 1 Protection 20 | . . 1 . 1 5 . . . . . . . . . 2 3 . . . . 7 1 Artifact . | . . . . . . . . . . . . . . . . . . . . . . . Weapon 43 | . 3 8 . 3 1 1 . . . . . 2 . 1 3 2 . 3 2 1 11 2 Energy Gun 4 | . 1 . . . . . . . . . . . . . . 1 . . . . 2 . Energy Cannon 11 | . . 2 . 1 1 . . . . . . . . 1 1 . . 3 . . . 2 Ballistic Gun 6 | . . . . . . . . . . . . . . . 1 . . . . . 5 . Ballistic Cannon 9 | . 2 5 . . . . . . . . . 1 . . . . . . . . 1 . Launcher 2 | . . . . 1 . . . . . . . . . . . . . . 1 . . . Special Weapon 5 | . . 1 . . . 1 . . . . . . . . 1 . . . . 1 1 . Impact Weapon . | . . . . . . . . . . . . . . . . . . . . . . . Slashing Weapon 2 | . . . . 1 . . . . . . . . . . . 1 . . . . . . Piercing Weapon 2 | . . . . . . . . . . . . . . . . . . . . . 2 . Special Melee Weapon 2 | . . . . . . . . . . . . 1 . . . . . . 1 . . . Unidentified Prototypes 34 | . . . . 1 4 . . . . . . . 2 . . . 1 7 2 . 17 . Corrupted Parts 1 | . . . . . . . . . . . . . . . . . . . 1 . . . System Corruption 1 | . . . . . . . . . . . . . . . . . . . 1 . . . Parts Lost 90 | . . 2 . . 11 . . . 2 4 . . . . 1 10 2 5 10 . 28 15 Power 13 | . . . . . 1 . . . 1 1 . . . . . 1 . . 2 . 7 . Propulsion 30 | . . 1 . . 6 . . . 1 2 . . . . . 3 . 2 4 . 6 5 Utility 42 | . . . . . 4 . . . . 1 . . . . 1 5 2 3 4 . 13 9 Weapon 5 | . . 1 . . . . . . . . . . . . . 1 . . . . 2 1 Highest Loss Streak 13 | . . 2 . . 4 . . . 2 4 . . . . 1 4 2 4 7 . 6 13 To Critical Strikes . | . . . . . . . . . . . . . . . . . . . . . . . Average Backups 12 | 5 13 13 . 12 7 7 8 8 7 7 8 8 8 8 7 5 4 7 6 4 3 3 Power 1 | 1 2 1 . 1 . . . . . . 1 1 . . . . . . . . . . Propulsion 1 | 3 3 1 . 1 . . . . . . 1 1 1 1 1 . . . . . . . Utility 3 | . 2 3 . 6 5 5 6 6 6 5 5 5 5 5 4 3 1 3 1 1 . . Weapon 4 | 1 4 5 . 2 1 2 2 2 1 1 1 1 1 1 1 1 1 2 2 2 2 3 Tool/Special . | . . . . . . . . . . . . . . . . . . . . . . . Unused Backups 39 | . 5 5 . 11 5 . . . . 2 . . . . 4 2 . 2 1 . 1 1 Power 12 | . 1 3 . 2 3 . . . . 1 . . . . . 1 . 1 . . . . Propulsion 3 | . 1 . . 1 . . . . . . . . . . 1 . . . . . . . Utility 13 | . 1 . . 4 1 . . . . 1 . . . . 3 1 . 1 . . . 1 Weapon 9 | . 2 2 . 3 1 . . . . . . . . . . . . . 1 . . . Tool/Special 2 | . . . . 1 . . . . . . . . . . . . . . . . 1 . Average Slot Usage (%) 96 | . 100 99 100 90 83 95 100 100 96 84 88 88 88 88 91 83 86 84 85 95 77 57 Engine 10 | . 14 14 14 8 1 . . . . . . . . . . . . . . . . . Treads 16 | . 16 23 . . . . . . . . . . . . . . . . . . . . Wheel 5 | . 11 4 28 27 . . . . . . . . . . . . . . . . . . Flight 4 | . . . . . 24 33 33 33 31 26 29 29 28 29 25 18 . . 16 26 19 13 Device 13 | . 14 13 14 9 10 13 13 13 13 10 11 11 11 11 14 11 19 23 25 20 13 9 Storage 11 | . 14 14 14 13 6 6 6 6 6 5 5 5 5 5 5 1 . 3 2 . 1 . Processor 2 | . . . . . 7 13 13 13 13 11 11 11 11 11 10 16 18 14 12 17 19 20 Hackware 2 | . . . . . 15 13 13 13 13 16 17 17 17 17 17 10 9 5 7 13 6 2 Energy Cannon 1 | . . . 28 15 . . . . . . . . . . . . 4 3 1 1 1 5 Ballistic Cannon 17 | . 11 25 . . . . . . . . . . . . . . . . . . . . Special Weapon 1 | . . 1 . . . 2 6 6 5 1 . . . . 1 . . . . 1 . . Slashing Weapon 1 | . . . . 5 6 6 6 6 4 5 5 5 5 5 5 7 4 3 4 2 1 2 Peak Build Rating 200 | 7 10 29 28 30 62 67 69 67 67 79 78 83 84 86 105 109 115 140 154 155 200 172 Average Rating 29 | 6 8 11 26 16 49 63 67 67 64 69 77 77 79 82 96 94 108 111 136 153 156 135 On Entrance 72 | 6 7 8 28 10 21 61 67 67 67 60 77 78 78 82 82 99 107 115 112 153 154 125 Avg Prop Armor Cover (%) 9 | . 11 9 5 14 13 . . . 3 8 11 11 11 . 6 4 . 2 2 . 7 11 Naked Turns . | . . . . . . . . . . . . . . . . . . . . . . . Heaviest Build 66 | 14 32 42 42 45 37 22 26 22 22 23 16 16 16 16 32 37 53 66 47 53 64 62 Greatest Support 90 | 40 40 40 36 28 32 27 27 27 32 35 21 21 34 34 42 61 61 90 62 64 64 66 Greatest Overweight (x) 5 | . 3 3 2 2 3 . . . . 5 . . . . 2 2 . 1 2 . 1 3 Average Overweight (x) . | . 2 1 1 1 . . . . . . . . . . . . . . . . . . Largest Inventory Capacity 15 | 8 15 15 15 15 15 8 8 8 8 8 8 8 8 8 8 8 5 10 10 5 5 5 Average Capacity 13 | 8 13 15 15 14 8 8 8 8 8 8 8 8 8 8 8 5 5 9 7 5 5 5 Most Carried 15 | 7 15 15 15 15 15 8 8 8 8 8 8 8 8 8 8 8 5 10 10 5 5 5 Average Carried 12 | 5 13 13 14 13 7 7 8 8 7 7 7 8 7 7 7 5 4 8 7 5 4 4 Final Capacity 15 | 8 15 15 15 15 8 8 8 8 8 8 8 8 8 8 8 5 5 10 5 5 5 5 Final Carried 15 | 6 15 15 1 15 8 8 8 8 8 8 8 8 8 8 8 5 5 10 5 5 4 5 Scrap Suit Usage (%) 1 | . . . . . . . . . . . . . . . . . . . . . 11 . Class Distribution -------------------- 79% | Mutant 9% | Hacker-Sprinter Dominant Class ---------------- Mutant | -10/Materials Mutant | -10/Subcaves Mutant | -8/Recycling Mutant | -8/Scraptown Derelict-Mutant | -6/Factory Hacker-Sprinter | -6/Lower Caves Hacker-Sprinter | -6/Lower Caves Hacker-Sprinter | -6/Data Miner Hacker-Sprinter | -5/Proximity Caves Hacker-Sprinter | -5/Factory Hacker-Sprinter | -5/Upper Caves Hacker-Sprinter | -5/Upper Caves Hacker-Sprinter | -5/Zhirov Hacker-Sprinter | -4/Proximity Caves Hacker-Sprinter | -4/Factory Commander-Sprinter | -4/Extension Hacker-Mutant | -3/Research Infiltrator-Ninja | -3/Testing Hacker-Ninja | -2/Research Hacker-Ninja | -2/Quarantine Scavenger-Mutant | -2/Protoforge Scavenger-Sprinter | -1/Access Resources | -11 -10 -10 -8 -8 -6 -6 -6 -6 -5 -5 -5 -5 -5 -4 -4 -4 -3 -3 -2 -2 -2 -1 ----------- Run | Yrd Mat Sub Rec Scr Fac Low Low Dat Pro Fac Upp Upp Zhi Pro Fac Ext Res Tes Res Qua Frg Acc Matter Collected 6934 | 240 388 1155 50 210 809 10 20 . 6 489 120 122 . . 446 432 22 82 479 67 1761 26 Remotely . | . . . . . . . . . . . . . . . . . . . . . . . Salvage Created 6463 | 72 387 409 50 . 1126 55 . . 22 666 . . . . 474 411 22 14 581 67 2107 . Parts 332 | 6 26 26 3 . 56 2 . . 4 30 . . . . 22 23 2 5 24 4 99 . Haulers Intercepted 1 | . 1 . . . . . . . . . . . . . . . . . . . . . Recyclers Shooed 5 | 1 . . . . . . . . . 1 . . . . 1 . . 1 1 . . . Parts Field Recycled . | . . . . . . . . . . . . . . . . . . . . . . . Retrieved Matter . | . . . . . . . . . . . . . . . . . . . . . . . Parts Self-Destructed 24 | . . 17 . . . 2 . . 3 . 2 . . . . . . . . . . . Prevented 1 | . . . . . . . . . . . 1 . . . . . . . . . . . Parts Restored . | . . . . . . . . . . . . . . . . . . . . . . . Kills | -11 -10 -10 -8 -8 -6 -6 -6 -6 -5 -5 -5 -5 -5 -4 -4 -4 -3 -3 -2 -2 -2 -1 ------- Run | Yrd Mat Sub Rec Scr Fac Low Low Dat Pro Fac Upp Upp Zhi Pro Fac Ext Res Tes Res Qua Frg Acc Combat Hostiles Destroyed 113 | . 9 19 1 . 10 . . . 5 8 . . . . 4 5 . . 7 . 45 . Melee 37 | . . . . . 10 . . . . 8 . . . . 4 5 . . 4 . 6 . Guns 24 | . 3 . . . . . . . . . . . . . . . . . . . 21 . Cannons 39 | . 6 19 1 . . . . . . . . . . . . . . . 2 . 11 . AOE 12 | . . . . . . . . . 5 . . . . . . . . . . . 7 . Classes Destroyed 19 | 2 6 2 . . 1 . . . 1 . . . . . 1 . . 1 . . 5 . Worker 9 | . 1 . . . . . . . . 1 . . . . 6 . 1 . . . . . Builder 1 | . . . . . . . . . . . . . . . . . . 1 . . . . Tunneler 2 | 1 . . . . . . . . . . . . . . 1 . . . . . . . Hauler 2 | . 1 . . . . . . . . . . . . . . . . . . . 1 . Recycler 10 | 1 . . . . 5 . . . . 2 . . . . 1 . . . 1 . . . Operator 2 | . 1 . . . . . . . . . . . . . . . . . 1 . . . Drone 22 | . . . . . . . . . 2 . . . . . . . . . . . 20 . Watcher 8 | . 3 . . . 1 . . . . . . . . . 1 1 . . . 2 . . Swarmer 20 | . 3 4 . . 3 . . . 3 3 . . . . . . . . 4 . . . Cutter 3 | . . . . . . . . . . . . . . . 3 . . . . . . . Grunt 13 | . 6 . . . . . . . . 1 . . . . . 2 . . 2 . 2 . Sentry 10 | . . 1 1 . 4 . . . . . . . . . 1 3 . . . . . . Hunter 7 | . . . . . . . . . . . . . . . . . . . . . 7 . Programmer 11 | . . . . . 3 . . . . 4 . . . . . . . . 1 . 3 . Hotshot 2 | . . . . . . . . . . . . . . . . . . . . . 2 . Striker 3 | . . . . . . . . . . . . . . . . . . . . . 3 . Executioner 7 | . . . . . . . . . . . . . . . . . . . . . 7 . Alpha 7 1 | . . . . . . . . . . . . . . . . . . . . . 1 . Subdweller 14 | . . 14 . . . . . . . . . . . . . . . . . . . . Scrapoid 2 | . . . . . . . . . . . . . . . . . . . . . 2 . Best Kill Streak 9 | 1 4 3 1 . 3 . . . 3 7 . . . . 6 2 1 1 4 2 9 . Combat Bots Only 9 | . 3 3 1 . 3 . . . 3 7 . . . . 3 2 . . 4 . 9 . Max Kills in Single Turn 3 | 1 2 1 1 . 1 . . . 2 1 . . . . 1 1 1 1 1 1 3 . Gunslinging . | . . . . . . . . . . . . . . . . . . . . . . . Exploded 3 | . . . . . . . . . 2 . . . . . . . . . . . 3 . Melee 1 | . . . . . 1 . . . . 1 . . . . 1 1 . . 1 . 1 . Uniques/NPCs Destroyed . | . . . . . . . . . . . . . . . . . . . . . . . Combat | -11 -10 -10 -8 -8 -6 -6 -6 -6 -5 -5 -5 -5 -5 -4 -4 -4 -3 -3 -2 -2 -2 -1 -------- Run | Yrd Mat Sub Rec Scr Fac Low Low Dat Pro Fac Upp Upp Zhi Pro Fac Ext Res Tes Res Qua Frg Acc Hostile Shots Fired 1314 | . 23 106 4 . 207 . . . 34 75 3 . . . 74 114 11 62 65 . 257 279 Missed 565 | . 6 38 2 . 84 . . . 13 32 2 . . . 35 57 5 27 18 . 114 132 Hits 749 | . 17 68 2 . 123 . . . 21 43 1 . . . 39 57 6 35 47 . 143 147 Melee 19 | . . . . . 1 . . . . 1 . . . . 7 . . . . . 8 2 Projectile 730 | . 17 68 2 . 122 . . . 21 42 1 . . . 32 57 6 35 47 . 135 145 AOE 9 | . . . . . . . . . . 2 . . . . 2 1 . . . . 4 . Critical Strikes 33 | . . 2 . . 1 . . . . 1 . . . . 4 3 . 3 2 . 11 6 Actively Blocked 20 | . . . . . . . . . . . . . . . 1 3 . . 2 . 11 3 Damage Taken 16391 | . 166 1126 30 . 1298 7 . . 337 962 18 . . . 952 1280 168 560 1068 . 4729 3690 Core 4468 | . 39 92 14 . 479 7 . . 67 316 18 . . . 183 241 44 78 199 . 1058 1633 Absorbed by Shields . | . . . . . . . . . . . . . . . . . . . . . . . Redirected to Shielding 537 | . . . . . 136 . . . . . . . . . . . . . . . 295 106 Regen/Repaired (Parts) 503 | . . . . 273 80 . . . . 30 . . . . 120 . . . . . . . Core Remaining (%) 58 | 100 . . . 42 . . . . 34 . . . . 66 . 63 . 90 . . 13 . Volleys Fired 412 | 5 31 111 2 . 20 . . 1 8 . . . . 3 4 . 5 25 15 . 171 11 Largest 2 | 2 2 2 2 . 1 . . 1 1 . . . . 1 1 . 1 1 1 . 2 1 Hottest 200 | 90 90 133 160 . 90 . . 7 33 . . . . 90 113 . 113 113 94 . 200 120 Shots Fired 521 | 10 61 167 4 . 19 . . 1 8 . . . . 3 4 . 5 25 15 1 187 11 Gun 149 | 10 34 . . . . . . . . . . . . . . . . . . . 105 . Cannon 318 | . 27 125 4 . 17 . . . . . . . . 3 4 . 5 25 15 1 81 11 Launcher 10 | . . . . . 2 . . . 8 . . . . . . . . . . . . . Special 44 | . . 42 . . . . . 1 . . . . . . . . . . . . 1 . Kinetic 276 | . 27 112 . . . . . . . . . . . . . . . . . . 136 1 Thermal 221 | 10 34 55 4 . 17 . . . . . . . . 3 4 . 5 25 3 1 50 10 Explosive 10 | . . . . . 2 . . . 8 . . . . . . . . . . . . . Electromagnetic 12 | . . . . . . . . . . . . . . . . . . . 12 . . . Robot Hit Streak 23 | 4 10 12 8 . . . . 9 . . . . . . . . . . 4 . 23 1 Robot Miss Streak 4 | 1 2 4 . . . . . . 2 . . . . . . . . . 3 . 3 . Penetration Max 2 | . . . . . . . . . . . . . . . . . . . . . 2 . Secondary Targets . | . . . . . . . . . . . . . . . . . . . . . . . Shots Hit Robots 415 | 7 37 77 3 . 42 1 . 1 . 27 . . . . 31 18 1 2 26 3 135 4 Core Hits 196 | 3 19 28 1 . 17 . . . 9 10 . . . . 12 8 . 1 10 2 74 2 Critical Kills 3 | . . . . . . . . . . . . . . . . . . . . . 3 . Critical Parts Destroyed 5 | . . . . . . . . . . . . . . . . . . . . . 5 . Critical Strikes 27 | . 4 3 . . . . . . . 4 . . . . 2 . . . 2 . 11 1 Burn 3 | . 3 . . . . . . . . . . . . . . . . . . . . . Destroy 8 | . . . . . . . . . . . . . . . . . . . . . 8 . Blast 8 | . 1 3 . . . . . . . . . . . . . . . . . . 3 1 Melee Attacks 279 | . . . . . 69 1 . . . 39 3 4 . 1 52 26 4 15 34 5 20 6 Impact . | . . . . . . . . . . . . . . . . . . . . . . . Slashing 277 | . . . . . 69 1 . . . 39 3 4 . 1 52 26 4 15 32 5 20 6 Piercing . | . . . . . . . . . . . . . . . . . . . . . . . Sneak Attacks 41 | . . . . . 8 . . . . 6 . . . . 13 3 1 2 4 . 4 . Combat Hostiles 3 | . . . . . 1 . . . . . . . . . . 2 . . . . . . Follow-up Attacks 3 | . . . . . . . . . . . . . . . 1 . . . 2 . . . Damage Inflicted 20646 | 81 550 1534 84 . 2089 104 . . 471 1390 . . . . 2006 991 74 160 1116 164 9621 211 Guns 3520 | 81 261 . . . . . . . . . . . . . . . . . . . 3178 . Cannons 5567 | . 289 1534 84 . . . . . . . . . . . . . . . 341 . 3267 52 Explosions 3166 | . . . . . . . . . 471 . . . . . . . . . 36 . 2659 . Melee 8390 | . . . . . 2089 104 . . . 1390 . . . . 2006 991 74 160 739 164 517 156 Ramming 3 | . . . . . . . . . . . . . . . . . . . . . . 3 Kinetic 6044 | . 289 1402 . . . . . . . . . . . . . . . . . . 4301 52 Thermal 5397 | 81 261 132 84 . . . . . . . . . . . . . . . 36 . 4803 . Explosive 471 | . . . . . . . . . 471 . . . . . . . . . . . . . Electromagnetic 341 | . . . . . . . . . . . . . . . . . . . 341 . . . Impact . | . . . . . . . . . . . . . . . . . . . . . . . Slashing 8390 | . . . . . 2089 104 . . . 1390 . . . . 2006 991 74 160 739 164 517 156 Piercing . | . . . . . . . . . . . . . . . . . . . . . . . Highest Corruption 9 | . . . . . 3 1 1 . . 8 8 8 8 8 1 1 3 3 4 4 9 2 Average Corruption 4 | . . . . . 1 1 1 . . 7 8 8 8 8 1 1 3 3 1 4 6 1 Corruption Purged 4 | . . . . . 3 . 1 . . . . . . . . . . . . . . . Corruption Blocked . | . . . . . . . . . . . . . . . . . . . . . . . Effects 121 | . . . . . 5 2 1 . . 13 17 15 1 4 3 8 7 5 2 3 35 . Message Errors 29 | . . . . . 1 1 . . . 3 6 4 . 1 1 3 1 1 . . 7 . Matter Fused 38 | . . . . . 3 . . . . 6 4 4 . 1 2 . 4 1 1 . 12 . Heat Flow Errors 10 | . . . . . . . . . . 1 2 2 . . . 2 1 1 . . 1 . Energy Discharges 11 | . . . . . . 1 . . . 1 2 1 . 1 . . . 1 . 1 3 . Parts Rejected 2 | . . . . . . . . . . . . . . . . 2 . . . . . . Parts Fused 1 | . . . . . . . . . . . . . . . . . . . . . 1 . Data Loss (minor) 14 | . . . . . 1 . 1 . . 1 1 3 1 1 . 1 1 . 1 . 2 . Data Loss (major) 7 | . . . . . . . . . . 1 2 . . . . . . 1 . 1 2 . Misfires 1 | . . . . . . . . . . . . . . . . . . . . 1 . . Alerts 3 | . . . . . . . . . . . . 1 . . . . . . . . 2 . Weapon Failures 5 | . . . . . . . . . . . . . . . . . . . . . 5 . Overload Shots 7 | . . . . . 6 . . . . . . . . . . . . . . . 1 . Effects 1 | . . . . . 1 . . . . . . . . . . . . . . . . . Energy Bleed 1 | . . . . . 1 . . . . . . . . . . . . . . . . . Overflow Damage 1755 | . . . . . 146 90 . . 1 183 . . . . 299 . 34 38 188 9 722 45 Projectiles 315 | . . . . . . . . . . . . . . . . . . . 32 . 283 . Explosions 419 | . . . . . . . . . 1 . . . . . . . . . . . 418 . Melee 1021 | . . . . . 146 90 . . . 183 . . . . 299 . 34 38 156 9 21 45 Knockbacks 18 | . 3 11 . . . . . . . . . . . . . . . . . . 3 1 Impact . | . . . . . . . . . . . . . . . . . . . . . . . Kinetic 18 | . 3 11 . . . . . . . . . . . . . . . . . . 3 1 Secondary . | . . . . . . . . . . . . . . . . . . . . . . . Self-Inflicted Damage 25 | . . . . . . . . . 24 . . . . . . . . . . . . 1 Shots 2 | . . . . . . . . . 2 . . . . . . . . . . . . . Rammed 1 | . . . . . . . . . . . . . . . . . . . . . . 1 Targets Rammed 1 | . . . . . . . . . . . . . . . . . . . . . . 1 Kicked . | . . . . . . . . . . . . . . . . . . . . . . . Crushed . | . . . . . . . . . . . . . . . . . . . . . . . Highest Temperature 335 | 120 150 261 198 . 102 . . . . 186 167 260 . 90 119 188 335 218 78 48 190 180 Average Temperature 65 | 53 46 160 105 . 36 . . . . 100 83 140 . 45 49 85 145 73 21 22 53 75 Received Heat Transfer 1978 | . 42 593 9 . 243 . . . . 30 9 . . . 57 243 9 212 90 . 153 288 Effects 2 | . . . . . . . . . . . . . . . . . . 2 . . . . Interference 2 | . . . . . . . . . . . . . . . . . . 2 . . . . Siege Activations . | . . . . . . . . . . . . . . . . . . . . . . . Martial Activations . | . . . . . . . . . . . . . . . . . . . . . . . Shielding Activations . | . . . . . . . . . . . . . . . . . . . . . . . Robots Disrupted 3 | . . . . . 1 . . . . . . . . . 1 . . . 1 . . . Combat Hostiles 1 | . . . . . . . . . . . . . . . 1 . . . . . . . Robots Corrupted 1 | . . . . . . . . . . . . . . . . . . . 1 . . . Combat Hostiles 1 | . . . . . . . . . . . . . . . . . . . 1 . . . Parts Fried 4 | . . . . . . . . . . . . . . . . . . . 4 . . . Impact Corruptions . | . . . . . . . . . . . . . . . . . . . . . . . Robots Melted . | . . . . . . . . . . . . . . . . . . . . . . . Combat Hostiles . | . . . . . . . . . . . . . . . . . . . . . . . Parts Melted 5 | 1 1 . . . . . . . . . . . . . . . . . . . 3 . Heat Transferred 4618 | 211 975 185 111 . . . . . . . . . . . . . . . 50 . 3086 . Parts Sabotaged . | . . . . . . . . . . . . . . . . . . . . . . . Parts Stolen . | . . . . . . . . . . . . . . . . . . . . . . . Parts Stripped . | . . . . . . . . . . . . . . . . . . . . . . . Power Chain Reactions 1 | . . . . . . . . . . . . . . . . . . . 1 . . . Alert | -11 -10 -10 -8 -8 -6 -6 -6 -6 -5 -5 -5 -5 -5 -4 -4 -4 -3 -3 -2 -2 -2 -1 ------- Run | Yrd Mat Sub Rec Scr Fac Low Low Dat Pro Fac Upp Upp Zhi Pro Fac Ext Res Tes Res Qua Frg Acc Maximum Alert Level 2 | . . . . . 1 . . . . 1 . . . . 1 2 . . . . 2 1 Low Security (%) 78 | 100 100 . 100 . 99 . . . . 58 . . . . 99 26 100 100 100 100 40 . Level 1 15 | . . . . . . . . . . 41 . . . . . 26 . . . . 47 100 Level 2 6 | . . . . . . . . . . . . . . . . 46 . . . . 11 . Level 3 . | . . . . . . . . . . . . . . . . . . . . . . . Level 4 . | . . . . . . . . . . . . . . . . . . . . . . . Level 5 . | . . . . . . . . . . . . . . . . . . . . . . . High Security . | . . . . . . . . . . . . . . . . . . . . . . . Max Security . | . . . . . . . . . . . . . . . . . . . . . . . Peak Influence 536 | 5 138 . 58 . 203 . . . . 384 . . . . 194 536 181 162 63 88 535 382 Initial 384 | . . . 9 . . . . . . 384 . . . . . 85 181 72 9 16 28 309 Average 126 | . 42 . 14 . 88 . . . . 201 . . . . 71 326 143 38 27 59 227 292 Influence Increases 6858 | 10 401 160 181 . 691 5 . . 185 614 21 . . . 861 1237 77 285 371 105 1336 318 Destroy 0b10 Robot/C 2120 | . 180 100 20 . 200 . . . 60 160 20 . . . 220 500 . . 140 . 520 . Destroy 0b10 Robot/NC 300 | 10 30 . . . 30 5 . . 10 15 . . . . 55 15 5 5 10 10 100 . Destroy Leader 330 | . 38 . . . 72 . . . 10 20 . . . . 42 54 . . 10 4 80 . Allied During Kill 375 | . . . . . . . . . . . 1 . . . 23 349 . . . . 2 . Successful Hack 486 | . 31 . 10 . 65 . . . . 17 . . . . 90 25 . 37 103 52 35 21 Select Force Hacks 180 | . 30 . 150 . . . . . . . . . . . . . . . . . . . Disable Machine 465 | . . . . . 15 . . . . . . . . . 45 60 30 75 15 . 210 15 Destroy Structure 457 | . 2 . 1 . 39 . . . . 12 . . . . 56 54 12 48 48 9 149 27 Advance Influence 300 | . . . . . . . . . . 300 . . . . . . . . . . . . Partial Spotted 360 | . . . . . 75 . . . . . . . . . 60 75 15 30 45 15 45 . Lose Combat Pursuer 1485 | . 90 60 . . 195 . . . 105 90 . . . . 270 105 15 90 . 15 195 255 Influence Decreases 6491 | 10 365 176 201 . 499 152 45 . 50 583 187 . . . 686 1066 295 397 357 84 870 468 Entered New Map 786 | . . 18 11 . . 72 9 . . 51 62 . . . . 90 165 56 7 14 23 208 Time Decay 3500 | 10 365 138 190 . 389 80 36 . 30 392 92 . . . 294 386 110 151 220 60 447 110 Search Patrol Dispatched 100 | . . . . . . . . . . 100 . . . . . . . . . . . . Lost Part 864 | . . 20 . . 100 . . . 20 40 . . . . 10 100 20 40 84 . 280 150 Lost Ally 853 | . . . . . 10 . . . . . 33 . . . 190 490 . . . 10 120 . Purge Threat 388 | . . . . . . . . . . . . . . . 192 . . 150 46 . . . Squads Dispatched 68 | . 2 . . . 14 . . . . 5 . . . . 15 5 2 5 3 2 11 4 Investigation 35 | . 1 . . . 8 . . . . 3 . . . . 7 1 1 2 . 1 9 2 Extermination 15 | . . . . . 4 . . . . 2 . . . . 2 . 1 1 3 . 1 1 Reinforcement 14 | . 1 . . . 2 . . . . . . . . . 3 3 . 2 . 1 1 1 Assault 1 | . . . . . . . . . . . . . . . . 1 . . . . . . Garrison 3 | . . . . . . . . . . . . . . . 3 . . . . . . . Intercept . | . . . . . . . . . . . . . . . . . . . . . . . Searches Triggered 1 | . . . . . . . . . . 1 . . . . . . . . . . . . Data Miner Redirects 3 | . . . . . . . . . . . . . . . 1 2 . . . . . . Construction Impeded 2 | . . . . . . . . . . . . . . . . 2 . . . . . . Haulers Reinforced . | . . . . . . . . . . . . . . . . . . . . . . . Active Scanning Responses . | . . . . . . . . . . . . . . . . . . . . . . . Cargo Convoy Interrupts 1 | . . . . . 1 . . . . . . . . . . . . . . . . . Stealth | -11 -10 -10 -8 -8 -6 -6 -6 -6 -5 -5 -5 -5 -5 -4 -4 -4 -3 -3 -2 -2 -2 -1 --------- Run | Yrd Mat Sub Rec Scr Fac Low Low Dat Pro Fac Upp Upp Zhi Pro Fac Ext Res Tes Res Qua Frg Acc Distress Signals 29 | . 4 . . . 1 . . . . . . . . . 4 6 1 3 2 1 4 3 Communications Jammed 26 | . . . . . . . . . . . . . . . . . . . . . 26 . Distress Signals . | . . . . . . . . . . . . . . . . . . . . . . . Times Spotted 388 | . 20 21 1 . 27 . . . 8 18 2 1 . . 33 41 8 24 20 4 113 47 Peak Tracking Total 24 | . 4 6 1 . 9 . . . 14 7 2 1 . . 7 8 8 14 5 3 12 24 Tactical Retreats 60 | . 3 2 . . 7 . . . 2 5 . . . . 10 5 1 7 4 1 9 4 ECM-based Alert Blocks 28 | . . . . . . . . . . . . . . . . . . 17 8 . 3 . Traps | -11 -10 -10 -8 -8 -6 -6 -6 -6 -5 -5 -5 -5 -5 -4 -4 -4 -3 -3 -2 -2 -2 -1 ------- Run | Yrd Mat Sub Rec Scr Fac Low Low Dat Pro Fac Upp Upp Zhi Pro Fac Ext Res Tes Res Qua Frg Acc Traps Triggered 8 | . . . . . 1 . . . . 3 . . . . . 1 . . . . 3 . Indirectly . | . . . . . . . . . . . . . . . . . . . . . . . Trap Hack Attempts . | . . . . . . . . . . . . . . . . . . . . . . . Triggered . | . . . . . . . . . . . . . . . . . . . . . . . Disarmed . | . . . . . . . . . . . . . . . . . . . . . . . Reprogrammed . | . . . . . . . . . . . . . . . . . . . . . . . Reused . | . . . . . . . . . . . . . . . . . . . . . . . Traps Extracted . | . . . . . . . . . . . . . . . . . . . . . . . Installed . | . . . . . . . . . . . . . . . . . . . . . . . Triggered . | . . . . . . . . . . . . . . . . . . . . . . . Most Traps Carried 1 | . . . . . . . . . . . . . . . . . . . . . 1 . Machines | -11 -10 -10 -8 -8 -6 -6 -6 -6 -5 -5 -5 -5 -5 -4 -4 -4 -3 -3 -2 -2 -2 -1 ---------- Run | Yrd Mat Sub Rec Scr Fac Low Low Dat Pro Fac Upp Upp Zhi Pro Fac Ext Res Tes Res Qua Frg Acc Machines Disabled 33 | . . . . . 1 . . . . . . 1 . . 3 4 2 5 1 . 15 1 Max in Single Turn 3 | . . . . . 1 . . . . . . 1 . . 1 . 1 1 1 . 3 1 Garrison Access 8 | . . . . . 3 . . . . 1 . . . . 2 . . 1 1 . . . Energy Cycler 1 | . . . . . . . . . . . . . . . . 1 . . . . . . Machines Repaired . | . . . . . . . . . . . . . . . . . . . . . . . Machines Dismantled . | . . . . . . . . . . . . . . . . . . . . . . . Machines Sabotaged . | . . . . . . . . . . . . . . . . . . . . . . . Overloaded Fab Kills . | . . . . . . . . . . . . . . . . . . . . . . . Hacking | -11 -10 -10 -8 -8 -6 -6 -6 -6 -5 -5 -5 -5 -5 -4 -4 -4 -3 -3 -2 -2 -2 -1 --------- Run | Yrd Mat Sub Rec Scr Fac Low Low Dat Pro Fac Upp Upp Zhi Pro Fac Ext Res Tes Res Qua Frg Acc Machines Accessed 149 | . 6 4 11 3 28 2 . 4 . 10 1 . 4 . 23 4 4 10 10 6 16 3 Terminals 62 | . 5 . 5 . 10 1 . . . 2 . . . . 9 3 2 6 5 4 8 2 Fabricators 18 | . . . . . 4 . . . . 4 . . . . 3 . 1 1 1 . 4 . Repair Stations 10 | . . . . . 3 . . . . 2 . . . . 1 . 1 . 1 . 1 1 Recycling Units 24 | . 1 . 5 . 6 . . . . 1 . . . . 7 1 . . . . 3 . Scanalyzers 9 | . . . . . 2 . . . . . . . . . 1 . . 2 2 2 . . Garrison Access 8 | . . . . . 3 . . . . 1 . . . . 2 . . 1 1 . . . Total Hacks 416 | . 23 7 17 26 68 2 . 27 . 37 7 . 17 . 63 12 9 20 24 15 35 7 Successful 272 | . 11 7 11 26 40 2 . 27 . 28 7 . 17 . 40 6 2 7 16 7 17 1 Failed 144 | . 12 . 6 . 28 . . . . 9 . . . . 23 6 7 13 8 8 18 6 Catastrophic 24 | . 1 . 3 . 4 . . . . . . . . . 1 . . 2 2 1 7 3 Database Lockouts . | . . . . . . . . . . . . . . . . . . . . . . . Manual 144 | . 20 . 12 . 34 . . . . 9 . . . . 18 6 7 3 13 9 11 2 Terminals 170 | . 22 . 10 . 33 1 . . . 4 . . . . 31 10 5 13 14 6 15 6 Fabricators 56 | . . . . . 10 . . . . 22 . . . . 7 . 2 2 2 . 11 . Repair Stations 27 | . . . . . 7 . . . . 5 . . . . 8 . 2 . 2 . 2 1 Recycling Units 43 | . 1 . 6 . 10 . . . . 5 . . . . 12 2 . . . . 7 . Scanalyzers 23 | . . . . . 5 . . . . . . . . . 2 . . 4 3 9 . . Garrison Access 11 | . . . . . 3 . . . . 1 . . . . 3 . . 1 3 . . . Terminal Hacks 149 | . 9 7 5 26 8 2 . 27 . 1 7 . 17 . 16 3 . 4 6 2 8 1 Record 55 | . . 4 1 25 . 1 . 10 . . 7 . 5 . . . . 1 . . . 1 Part Schematic 17 | . 2 . . . 1 . . 10 . . . . 4 . . . . . . . . . Robot Schematic 4 | . . . . . . . . 4 . . . . . . . . . . . . . . Robot Analysis 8 | . 3 . . . 1 . . . . . . . 4 . . . . . . . . . Prototype ID Bank 15 | . 1 . 3 . 1 . . 3 . . . . 4 . 2 1 . . . . . . Open Door 4 | . . 1 . 1 . 1 . . . . . . . . 1 . . . . . . . Open DSF 3 | . . . . . . . . . . 1 . . . . 2 . . . . . . . Branch Access Points 3 | . . . . . . . . . . . . . . . 1 . . . 1 1 . . Emergency Access Points 2 | . . . . . . . . . . . . . . . 1 . . . . . 1 . Terminal Index 3 | . 1 . . . . . . . . . . . . . 1 . . . . . 1 . Repair Station Index 1 | . . . . . 1 . . . . . . . . . . . . . . . . . Recycling Unit Index 3 | . . . 1 . . . . . . . . . . . 1 . . . . . 1 . Alert Level 1 | . . . . . . . . . . . . . . . . . . . . . 1 . Unreport Threat 4 | . . . . . . . . . . . . . . . 2 . . 1 1 . . . Locate Traps 12 | . 1 . . . 2 . . . . . . . . . . 2 . 1 3 . 3 . Dispatch Records 1 | . . . . . . . . . . . . . . . 1 . . . . . . . Maintenance Status 1 | . . . . . . . . . . . . . . . . . . . . 1 . . Security Status 1 | . . . . . . . . . . . . . . . . . . . 1 . . . Recall Investigation 2 | . . . . . 1 . . . . . . . . . 1 . . . . . . . Recall Extermination 1 | . . . . . . . . . . . . . . . . . . 1 . . . . Recall Reinforcements 1 | . . . . . 1 . . . . . . . . . . . . . . . . . Registered Components 2 | . 1 . . . . . . . . . . . . . 1 . . . . . . . Zone Layout 3 | . . . . . . . . . . . . . . . 2 . . . . . 1 . Proto ID Catalog 1 | . . 1 . . . . . . . . . . . . . . . . . . . . Release Object 1 | . . 1 . . . . . . . . . . . . . . . . . . . . Fabricator Hacks 23 | . . . . . 4 . . . . 10 . . . . 1 . 1 1 1 . 5 . Network Status 6 | . . . . . . . . . . 1 . . . . 1 . 1 1 1 . 1 . Load Schematic 11 | . . . . . 3 . . . . 5 . . . . . . . . . . 3 . Build 6 | . . . . . 1 . . . . 4 . . . . . . . . . . 1 . Repair Station Hacks 16 | . . . . . 6 . . . . 5 . . . . 4 . . . 1 . . . Scan Component 9 | . . . . . 3 . . . . 3 . . . . 2 . . . 1 . . . Repair 7 | . . . . . 3 . . . . 2 . . . . 2 . . . . . . . Recycling Unit Hacks 9 | . . . . . 1 . . . . 4 . . . . 3 1 . . . . . . Process 1 | . . . . . . . . . . 1 . . . . . . . . . . . . Report Inventory 1 | . . . . . . . . . . 1 . . . . . . . . . . . . Retrieve Matter 4 | . . . . . 1 . . . . 2 . . . . 1 . . . . . . . Retrieve Components 3 | . . . . . . . . . . . . . . . 2 1 . . . . . . Scanalyzer 10 | . . . . . 3 . . . . . . . . . 2 . . . 3 2 . . Insert Component 1 | . . . . . 1 . . . . . . . . . . . . . . . . . Analyze 1 | . . . . . 1 . . . . . . . . . . . . . . . . . Retrieve Study 8 | . . . . . 1 . . . . . . . . . 2 . . . 3 2 . . Garrison Access Hacks 8 | . . . . . 3 . . . . 1 . . . . 2 . . 1 1 . . . Seal Access 8 | . . . . . 3 . . . . 1 . . . . 2 . . 1 1 . . . Unauthorized Hacks 57 | . 2 . 6 . 15 . . . . 7 . . . . 12 2 1 1 4 3 4 . Terminals 22 | . 1 . 1 . 7 . . . . 1 . . . . 2 1 1 . 3 2 3 . Track 3 | . . . . . 3 . . . . . . . . . . . . . . . . . Assimilate 4 | . . . . . 1 . . . . . . . . . 1 1 . . . 1 . . Botnet 12 | . 1 . 1 . 2 . . . . 1 . . . . 1 . 1 . 2 1 2 . Operators 3 | . . . . . 1 . . . . . . . . . . . . . 1 . 1 . Fabricators 12 | . . . . . 3 . . . . 5 . . . . 3 . . . 1 . . . Report 1 | . . . . . . . . . . 1 . . . . . . . . . . . . Fabnet 6 | . . . . . 1 . . . . 1 . . . . 3 . . . 1 . . . Haulers 1 | . . . . . . . . . . 1 . . . . . . . . . . . . Recompile 4 | . . . . . 2 . . . . 2 . . . . . . . . . . . . Repair Stations . | . . . . . . . . . . . . . . . . . . . . . . . Recycling Units 21 | . 1 . 5 . 5 . . . . 1 . . . . 7 1 . . . . 1 . Tunnel 6 | . 1 . 5 . . . . . . . . . . . . . . . . . . . Fedlink 13 | . . . . . 5 . . . . 1 . . . . 6 . . . . . 1 . Scrapoids 2 | . . . . . . . . . . . . . . . 1 1 . . . . . . Scanalyzers 2 | . . . . . . . . . . . . . . . . . . 1 . 1 . . Researchers 2 | . . . . . . . . . . . . . . . . . . 1 . 1 . . Garrison Access . | . . . . . . . . . . . . . . . . . . . . . . . Data Cores Recovered 1 | . . . . . . . . . . . . . . . . . . . 1 . . . Used 1 | . . . . . . . . . . . . . . . . . . . 1 . . . Hacking Detections 84 | . 5 . 5 . 17 . . . . 6 . . . . 11 2 4 9 7 4 11 3 Full Trace Events 12 | . . . . . 1 . . . . . . . . . . . 1 2 . . 6 2 Feedback Events 3 | . . . . . . . . . . . . . . . . . . 1 . . 2 . Corruption 1 | . . . . . . . . . . . . . . . . . . . . . 1 . Hackware Fried 2 | . . . . . . . . . . . . . . . . . . 1 . . 1 . Feedback Blocked . | . . . . . . . . . . . . . . . . . . . . . . . Robot Schematics Acquired 4 | . . . . . . . . 4 . . . . . . . . . . . . . . Robots Built . | . . . . . . . . . . . . . . . . . . . . . . . Authchips . | . . . . . . . . . . . . . . . . . . . . . . . Time . | . . . . . . . . . . . . . . . . . . . . . . . Total Robot Build Rating . | . . . . . . . . . . . . . . . . . . . . . . . Part Schematics Acquired 18 | . 2 . . . 2 . . 10 . . . . 4 . . . . . . . . . Parts Built 6 | . . . . . 1 . . . . 4 . . . . . . . . . . 1 . Authchips 4 | . . . . . 1 . . . . 3 . . . . . . . . . . . . Time 451 | . . . . . 134 . . . . 261 . . . . . . . . . . 56 . Total Part Build Rating 28 | . . . . . 4 . . . . 18 . . . . . . . . . . 6 . Part Studies Acquired 8 | . . . . . 1 . . . . . . . . . 2 . . . 3 2 . . Parts Repaired 7 | . . . . . 3 . . . . 2 . . . . 2 . . . . . . . Time 278 | . . . . . 109 . . . . 106 . . . . 63 . . . . . . . Parts Recycled . | . . . . . . . . . . . . . . . . . . . . . . . Recycled Matter 2 | . . . . . . . . . . 2 . . . . . . . . . . . . Retrieved Matter 127 | . . . . . 125 . . . . 2 . . . . . . . . . . . . Retrieved Components 5 | . . . . . . . . . . . . . . . 3 2 . . . . . . Parts Scanalyzed 1 | . . . . . 1 . . . . . . . . . . . . . . . . . Part Schematics Acquired 1 | . . . . . 1 . . . . . . . . . . . . . . . . . Parts Damaged . | . . . . . . . . . . . . . . . . . . . . . . . Bothacking | -11 -10 -10 -8 -8 -6 -6 -6 -6 -5 -5 -5 -5 -5 -4 -4 -4 -3 -3 -2 -2 -2 -1 ------------ Run | Yrd Mat Sub Rec Scr Fac Low Low Dat Pro Fac Upp Upp Zhi Pro Fac Ext Res Tes Res Qua Frg Acc Used RIF Installer . | . . . . . . . . . . . . . . . . . . . . . . . Robots Hacked 11 | . . . . . . . . 1 . . 1 1 . . . 1 . 2 1 . 4 . Non-combat 1 | . . . . . . . . . . . . . . . . . . . 1 . . . Combat 10 | . . . . . . . . 1 . . 1 1 . . . 1 . 2 . . 4 . Robot Hacks Applied 2 | . . . . . . . . 1 . . . . . . . . . . 1 . . . parse_system 2 | . . . . . . . . 1 . . . . . . . . . . 1 . . . Relay Couplers Released . | . . . . . . . . . . . . . . . . . . . . . . . Fabnet Peak Effective % 9 | . . . . . . . . . 3 3 3 3 3 1 1 1 9 9 3 3 3 3 Autooverrided 9 | . . . . . . . . . . . 1 1 . . . 1 . 2 . . 4 . Robots Rewired 23 | . . . . . . . . . . . . . . . 4 19 . . . . . . Allies Hacked 2 | . . . . . 1 . . . . . . . . . 1 . . . . . . . Hacks Repelled . | . . . . . . . . . . . . . . . . . . . . . . . Allies | -11 -10 -10 -8 -8 -6 -6 -6 -6 -5 -5 -5 -5 -5 -4 -4 -4 -3 -3 -2 -2 -2 -1 -------- Run | Yrd Mat Sub Rec Scr Fac Low Low Dat Pro Fac Upp Upp Zhi Pro Fac Ext Res Tes Res Qua Frg Acc Total Allies 50 | . . . . . 1 . . . . . 3 1 . . 10 28 . 2 . 1 4 . Largest Group 17 | . . . . . 1 . . . . . 2 1 . . 5 17 . 2 . 1 2 . Highest-Rated Group 707 | . . . . . 10 . . . . . 40 29 . . 238 707 . 111 . 26 138 . Highest-Rated Ally 69 | . . . . . 10 . . . . . 30 29 . . 50 51 . 64 . 26 69 . Initial UFD Resources 81 | . . . . . 23 43 43 43 45 45 55 55 55 59 59 78 79 79 81 81 81 . Total Orders 13 | . . . . . . . . . . . . . . . . 10 . . . 3 . . STAY 2 | . . . . . . . . . . . . . . . . 2 . . . . . . ROAM 8 | . . . . . . . . . . . . . . . . 6 . . . 2 . . FOLLOW 3 | . . . . . . . . . . . . . . . . 2 . . . 1 . . Ally Attacks 259 | . . . . . . . . . . . 5 3 . . 49 169 . 6 . . 27 . Total Damage 6539 | . . . . . . . . . . . 190 36 . . 1100 4335 . 239 . . 639 . Kills 33 | . . . . . . . . . . . 1 . . . 9 22 . . . . 1 . Allies Corrupted 1 | . . . . . . . . . . . 1 . . . . . . . . . . . Allies Melted . | . . . . . . . . . . . . . . . . . . . . . . . Intel | -11 -10 -10 -8 -8 -6 -6 -6 -6 -5 -5 -5 -5 -5 -4 -4 -4 -3 -3 -2 -2 -2 -1 ------- Run | Yrd Mat Sub Rec Scr Fac Low Low Dat Pro Fac Upp Upp Zhi Pro Fac Ext Res Tes Res Qua Frg Acc Active Infowar (turns) 39134 | 37 1199 26973 661 1476 1510 176 274 23 151 921 425 454 49 121 961 906 220 407 593 124 1253 220 Optics 8672 | . . . . . 1486 176 274 23 151 921 425 454 49 121 961 906 220 315 593 124 1253 220 Sensors 6337 | . . . . . 667 176 212 23 130 544 425 413 46 89 923 904 220 388 592 124 461 . Terrain 25723 | . 110 25613 . . . . . . . . . . . . . . . . . . . . Structural 1604 | . . . . . 188 . 82 . . 8 . 41 . 33 203 14 208 390 437 . . . Seismic 8929 | 37 1089 1360 661 1476 914 176 192 23 128 483 425 454 49 120 833 53 209 247 . . . . Triangulation 41 | . . . . . 41 . . . . . . . . . . . . . . . . . Cloaking 867 | . . . . . . . . . . . . . . . 774 93 . . . . . . Jamming 512 | . . . . . . . . . . . . . . . . 113 . . . 120 279 . ECM 580 | . . . . . . . . . . . . . . . . . . 239 246 3 92 . Robot Analysis Total 8 | . 3 . . . 1 . . . . . . . 4 . . . . . . . . . Derelict Logs Recovered 9 | . . 3 . 2 . 1 . . . . . 3 . . . . . . . . . . Drone Launches 2 | . . . . . . . . . . . . . . . . . . . . . 2 . Drone Recoveries . | . . . . . . . . . . . . . . . . . . . . . . . Exploration | -11 -10 -10 -8 -8 -6 -6 -6 -6 -5 -5 -5 -5 -5 -4 -4 -4 -3 -3 -2 -2 -2 -1 ------------- Run | Yrd Mat Sub Rec Scr Fac Low Low Dat Pro Fac Upp Upp Zhi Pro Fac Ext Res Tes Res Qua Frg Acc Turns Passed 41108 | 90 1385 28069 661 2093 1532 176 274 23 151 921 425 454 49 121 961 906 220 407 593 124 1253 220 Spaces Moved 20487 | 42 783 2980 534 1873 2046 608 445 87 312 1475 471 760 139 330 1804 1220 422 517 859 378 1975 427 Core 270 | . . . . 218 . . . . . 14 . . . . . . . . . . . 38 Treads 2030 | 42 78 1910 . . . . . . . . . . . . . . . . . . . . Legs 1 | . . . . . . . . . . . . . . . . . . 1 . . . . Wheels 3972 | . 705 1070 534 1655 8 . . . . . . . . . . . . . . . . . Hover 1586 | . . . . . 20 . . . . . . . . . . 262 422 516 366 . . . Flight 12628 | . . . . . 2018 608 445 87 312 1461 471 760 139 330 1804 958 . . 493 378 1975 389 Fastest Speed 11 | 160 95 105 117 50 21 25 25 25 18 25 27 27 25 25 15 25 38 38 11 11 11 32 Average Speed 61 | 160 127 148 119 107 37 25 25 25 26 28 27 27 26 25 26 32 39 43 36 20 29 36 Slowest Speed 300 | 160 240 240 130 130 195 25 25 25 32 300 27 27 28 25 162 200 45 105 153 21 113 285 Overloaded Moves 171 | . . . . . 9 . . . 3 . . . . . 120 . . . 15 14 10 . Propulsion Burnouts . | . . . . . . . . . . . . . . . . . . . . . . . Robots Hopped 54 | . . . . . 4 . . . . 8 . . . . 15 5 . . 8 . 6 8 Potential Cave-ins 10 | . . . . . . . . . . . . . . . . . . 5 . . 2 3 Cave-ins Triggered . | . . . . . . . . . . . . . . . . . . . . . . . Exploration Rate (%) 58 | 3 80 97 84 91 58 70 65 78 65 28 64 76 61 59 58 59 15 89 28 61 48 17 Regions Visited 22 Branch Regions 15 Pre-discovered Areas 17 | . 1 1 5 4 1 . . 1 . . . 1 3 . . . . . . . . . Known Exits Taken 10 | . . 1 . . 1 . . . 1 1 1 . . . 1 . 1 1 1 1 . . Unknown Exits Taken 12 | 1 1 . 1 1 . 1 1 1 . . . 1 1 1 . 1 . . . . 1 . Scrap Searched 30 | . . 6 . 9 . 5 2 . . . 2 5 . 1 . . . . . . . . Spaces Dug 140 | . . 4 . . 30 . . . 5 6 2 2 . 3 18 1 3 19 13 2 24 8 Terrain Destroyed 271 | . . 6 . . 39 . . . 45 6 2 2 . 4 20 1 6 33 18 3 74 12 Melee 79 | . . . . . 21 . . . . 6 2 2 . 1 16 1 1 8 12 2 4 3 Projectile 89 | . . 6 . . 7 . . . . . . . . 3 4 . 5 25 3 1 26 9 AOE 103 | . . . . . 11 . . . 45 . . . . . . . . . 3 . 44 . Terrain Rammed . | . . . . . . . . . . . . . . . . . . . . . . . Walls Destroyed . | . . . . . . . . . . . . . . . . . . . . . . . Machines Disabled . | . . . . . . . . . . . . . . . . . . . . . . . Actions | -11 -10 -10 -8 -8 -6 -6 -6 -6 -5 -5 -5 -5 -5 -4 -4 -4 -3 -3 -2 -2 -2 -1 --------- Run | Yrd Mat Sub Rec Scr Fac Low Low Dat Pro Fac Upp Upp Zhi Pro Fac Ext Res Tes Res Qua Frg Acc Total 47919 | 56 1108 26351 554 1962 2683 630 604 87 370 1909 763 1000 149 360 2183 1677 460 653 1072 415 2410 463 Wait 25703 | . 245 23154 13 . 399 19 152 . 40 338 286 229 . 19 250 304 12 43 104 27 69 . Move 20362 | 41 782 2979 533 1872 2038 607 444 86 311 1459 470 759 138 329 1774 1210 421 516 843 377 1962 411 Hop 49 | . . . . . 3 . . . . 7 . . . . 14 4 . . 7 . 6 8 Pick Up 146 | 2 17 6 3 41 20 1 . . . 13 1 . 1 . 10 4 3 10 5 . 6 3 Fast Attach 198 | 1 . 8 . 4 23 1 2 . 2 10 . 2 4 . 8 17 6 13 30 1 55 11 Attach 87 | 3 1 2 . 4 21 . . . 1 7 . . . 1 4 5 2 5 8 . 20 3 Detach 48 | 2 . . . 2 10 . . . 1 1 . . . 1 1 4 . 4 2 . 18 2 Swap 251 | . 23 60 . 7 50 . 4 . 5 19 2 4 2 6 35 10 2 6 4 3 9 . Drop 251 | 2 9 31 3 32 30 1 2 . 2 13 1 2 4 . 14 10 5 16 22 2 43 7 Fire 412 | 5 31 111 2 . 20 . . 1 8 . . . . 3 4 . 5 25 15 . 171 11 Melee 276 | . . . . . 69 1 . . . 39 3 4 . 1 51 26 4 15 32 5 20 6 Ram 1 | . . . . . . . . . . . . . . . . . . . . . . 1 Kick . | . . . . . . . . . . . . . . . . . . . . . . . Crush . | . . . . . . . . . . . . . . . . . . . . . . . Escape Stasis 39 | . . . . . . . . . . 3 . . . . . 15 . . . . 21 . Rewire 86 | . . . . . . . . . . . . . . . 18 68 . . . . . . Trap . | . . . . . . . . . . . . . . . . . . . . . . . Miscellaneous 10 | . . . . . . . . . . . . . . . . . . . . . 10 . Route ------- -11/Scrapyard -10/Materials (discovered 5 exits: *Mat x3 / [*Min] / *Sub) -10/Subcaves (discovered 3 exits: [*Mat x2] / *Rec) -8/Recycling (discovered 2 exits: *Fac / *Scr) -8/Scraptown (discovered 2 exits: *Fac x2) -6/Factory (discovered 6 exits: *Fac x4 / *Low x2) -6/Lower Caves -6/Lower Caves -6/Data Miner -5/Proximity Caves -5/Factory (discovered 3 exits: *Fac / *Upp x2) -5/Upper Caves -5/Upper Caves (discovered 2 exits: *Fac / *Zhi) -5/Zhirov -4/Proximity Caves -4/Factory (discovered 7 exits: *Res x3 / Upp x2 / *Ext x2) -4/Extension -3/Research (discovered 4 exits: *Res / Arm / *Tes x2) -3/Testing -2/Research -2/Quarantine (discovered 2 exits: [*Sec] / *Frg) -2/Protoforge -1/Access History --------- Turn | Location | Event 18 | -11/Scrapyard | Discovered new exit (range 3) 91 | -11/Scrapyard | Entered Materials 327 | -10/Materials | Build established: Mutant 911 | -10/Materials | Discovered new exit (range 13) 1141 | -10/Materials | Discovered new exit (range 4) 1180 | -10/Materials | Discovered new exit (range 14) 1231 | -10/Materials | Identified exit to Materials 1450 | -10/Materials | Discovered exit to Materials (range 16) 1458 | -10/Materials | Discovered new exit (range 8) 1476 | -10/Materials | Entered Subcaves 1477 | -10/Subcaves | Approached by a straggling Scientist 1607 | -10/Subcaves | Learned location of Zion (-7) 1607 | -10/Subcaves | Met a Zionite searching for "candidates" 1622 | -10/Subcaves | Learned Materials emergency access door positions 1654 | -10/Subcaves | Discovered new exit (range 5) 1871 | -10/Subcaves | Shifting Twisted Machinery released Riot Gun 1872 | -10/Subcaves | Shifting Twisted Machinery released Battle Cannon 2180 | -10/Subcaves | Discovered new exit (range 9) 2393 | -10/Subcaves | Shifting Twisted Machinery released Sub. Monowheel 2498 | -10/Subcaves | Visited Clippyterm 2503 | -10/Subcaves | Identified exit to Recycling 3005 | -10/Subcaves | Shifting Twisted Machinery released Battle Cannon 4360 | -10/Subcaves | Visited 4L-MR0's lab 7133 | -10/Subcaves | Shifting Twisted Machinery released Sub. Power Source 7852 | -10/Subcaves | Shifting Twisted Machinery released Sub. Machine Gun 7909 | -10/Subcaves | A swath of the cavern ceiling suddenly collapsed 12072 | -10/Subcaves | Learned 2 Materials zone layouts 15449 | -10/Subcaves | A swath of the cavern ceiling suddenly collapsed 21072 | -10/Subcaves | Core integrity fell below 50% 23425 | -10/Subcaves | Curiously followed by a Cobbler waking with a query about "LVR3C" 29449 | -10/Subcaves | Found SUBCON Basin 29545 | -10/Subcaves | Entered Recycling 29772 | -8/Recycling | Scanned before Scraplab entrance 29997 | -8/Recycling | Discovered new exit (range 7) 30147 | -8/Recycling | Entered Scraplab 30191 | -8/Recycling | Discovered new exit (range 3) 30206 | -8/Recycling | Entered Scraptown 30400 | -8/Scraptown | Heard Great Nut preacher, LISTEN AND RECITE! 30442 | -8/Scraptown | Visited Bundlers 30555 | -8/Scraptown | Visited CR-KLE's Repair Center 30570 | -8/Scraptown | Visited Junk Repository 30644 | -8/Scraptown | Scanned Subdweller tech in exchange for log data 30648 | -8/Scraptown | Learned Research machine intel 30649 | -8/Scraptown | Learned location of Extension (-4) 30689 | -8/Scraptown | Discovered new exit (range 11) 31013 | -8/Scraptown | Visited The Evicted 31041 | -8/Scraptown | Visited Assassins FH 31090 | -8/Scraptown | Visited UFD Registry 31090 | -8/Scraptown | Registered with UFD as "Nullmind" 31159 | -8/Scraptown | Visited Observation Area 31292 | -8/Scraptown | Visited Chapter 10 31319 | -8/Scraptown | Visited LU-1G1's Boring Crew 31367 | -8/Scraptown | Visited Sword Containment 31379 | -8/Scraptown | Found Prototype Slashing Weapon 31379 | -8/Scraptown | Identified Companion Sword 31408 | -8/Scraptown | Visited Supply Room 31453 | -8/Scraptown | Visited Scrap Suit Storage 31482 | -8/Scraptown | Visited Research Penetration Think Tank 31503 | -8/Scraptown | Visited Cartography Club 31545 | -8/Scraptown | Found Deep Structural Scanner 31551 | -8/Scraptown | Learned location of Upper Caves (-4) 31551 | -8/Scraptown | Learned 8 Materials zone layouts 31551 | -8/Scraptown | Learned 16 Materials zone layouts 31551 | -8/Scraptown | Learned 16 Factory zone layouts 31551 | -8/Scraptown | Learned 20 Factory zone layouts 31551 | -8/Scraptown | Learned 4 Mines zone layouts 31551 | -8/Scraptown | Learned 24 Upper Caves zone layouts 31551 | -8/Scraptown | Learned 16 Proximity Caves zone layouts 31551 | -8/Scraptown | Learned 4 Armory zone layouts 31551 | -8/Scraptown | Learned Research emergency access door positions 31551 | -8/Scraptown | Learned location of 1 exit from Factory 31551 | -8/Scraptown | Learned location of 2 exits from Research 31571 | -8/Scraptown | Visited DA-N13 Charitable Foundation 31573 | -8/Scraptown | Found DCF Scrap (30 items) 31604 | -8/Scraptown | Visited Derelict Rescue Squad 31611 | -8/Scraptown | Found DRS Beacon 31970 | -8/Scraptown | CR-KLE repaired 7 parts 32221 | -8/Scraptown | Met Optimus 32221 | -8/Scraptown | Accepted into 0bPrime 32294 | -8/Scraptown | Discovered new exit (range 5) 32296 | -8/Scraptown | Civil war broke out across Scraptown 32299 | -8/Scraptown | Entered Factory 32299 | -6/Factory | Evolved 8 slots: Propulsion x3, Utility x5 32300 | -6/Factory | Identified exit to Factory 32301 | -6/Factory | Identified exit to Lower Caves 32496 | -6/Factory | Discovered exit to Lower Caves (range 19) 32600 | -6/Factory | Build established: Derelict-Mutant 32885 | -6/Factory | Loaded intel: 8 recycling unit locations 32904 | -6/Factory | Learned location of Protoforge (-2) 32979 | -6/Factory | Build established: Hacker-Mutant 32992 | -6/Factory | Discovered exit to Factory (range 14) 33039 | -6/Factory | Repaired Mak. Flight Unit 33079 | -6/Factory | Lost 4 parts (1n3u) 33274 | -6/Factory | Core integrity fell below 50% 33296 | -6/Factory | Lost 4 parts (3n1u) 33347 | -6/Factory | Fabricated Cld. VTOL Module? 33503 | -6/Factory | Repaired Cld. Cesium-ion Thruster? 33503 | -6/Factory | Cargo convoy interrupted 33525 | -6/Factory | Repaired Adv. Sensor Array 33752 | -6/Factory | Build established: Hacker-Sprinter 33831 | -6/Factory | Entered Lower Caves 33833 | -6/Lower Caves | Learned Factory security intel 33980 | -6/Lower Caves | Discovered new exit (range 8) 34007 | -6/Lower Caves | Entered another Lower Caves area 34026 | -6/Lower Caves | Encountered a Warlord checkpoint 34029 | -6/Lower Caves | Spotted B-75 Beast 34252 | -6/Lower Caves | Discovered new exit (range 5) 34281 | -6/Lower Caves | Entered Data Miner 34281 | -6/Data Miner | Discovered new exit (range 6) 34285 | -6/Data Miner | Met Data Miner 34295 | -6/Data Miner | Learned location of Section 7 (-2) 34295 | -6/Data Miner | Acquired the access code to Warlord's prototype stash 34299 | -6/Data Miner | Received God Mode back door access code from Data Miner 34304 | -6/Data Miner | Entered Proximity Caves 34317 | -5/Proximity Caves | Spotter reported a threat 34318 | -5/Proximity Caves | Spotter reported a threat 34455 | -5/Proximity Caves | Entered Factory 34455 | -5/Factory | Evolved 2 slots: Propulsion x1, Utility x1 34456 | -5/Factory | Identified exit to Upper Caves 34598 | -5/Factory | Fabricated Cld. VTOL Module (x1) 34674 | -5/Factory | Discovered new exit (range 6) 34755 | -5/Factory | Search patrols dispatched 34827 | -5/Factory | Identified exit to DSF 34897 | -5/Factory | Watched by a mysterious "MATRIX" hacker. 34977 | -5/Factory | Repaired Cld. Cesium-ion Thruster 34995 | -5/Factory | Fabricated Adv. Hacking Suite (x1) 35133 | -5/Factory | Destroyed 7 combat bots 35136 | -5/Factory | Lost 4 parts (1p2n1u) 35266 | -5/Factory | Fabricated Cld. VTOL Module (x1) 35307 | -5/Factory | Repaired Seismic Detector 35355 | -5/Factory | Loaded intel: 7 recycling unit locations 35370 | -5/Factory | Fabricated Cld. VTOL Module (x1) 35376 | -5/Factory | Entered Upper Caves 35377 | -5/Upper Caves | Identified exit to Upper Caves 35443 | -5/Upper Caves | Learned Research emergency access door positions 35443 | -5/Upper Caves | Learned Extension emergency access door positions 35443 | -5/Upper Caves | Learned Research security intel 35443 | -5/Upper Caves | Learned Research terminal intel 35443 | -5/Upper Caves | A Commander dispatched an escort 35801 | -5/Upper Caves | Entered another Upper Caves area 35807 | -5/Upper Caves | Discovered new exit (range 16) 35860 | -5/Upper Caves | Learned Factory garrison access intel 35899 | -5/Upper Caves | Spotted B-75 Beast 36203 | -5/Upper Caves | Learned Factory trap positions 36245 | -5/Upper Caves | Discovered new exit (range 5) 36251 | -5/Upper Caves | Attacked by a delusional Derelict stockpiling parts 36255 | -5/Upper Caves | Entered Zhirov 36255 | -5/Zhirov | Discovered new exit (range 3) 36260 | -5/Zhirov | Met Zhirov 36266 | -5/Zhirov | Learned location of Quarantine (-2) 36266 | -5/Zhirov | Learned location of Command (-1) 36268 | -5/Zhirov | Zhirov requested help retrieving the SGEMP Prototype 36273 | -5/Zhirov | Found Alien Artifact 36273 | -5/Zhirov | Identified Integrated Reactor 36273 | -5/Zhirov | Installed Integrated Reactor, increased core energy generation (+10) 36281 | -5/Zhirov | Found Alien Artifact 36304 | -5/Zhirov | Entered Proximity Caves 36304 | -4/Proximity Caves | Spotted B-86 Titan 36409 | -4/Proximity Caves | Discovered new exit (range 17) 36425 | -4/Proximity Caves | Entered Factory 36425 | -4/Factory | Evolved 2 slots: Utility x2 36426 | -4/Factory | Loaded intel: 109 trap records 36427 | -4/Factory | Loaded intel: 4 garrison access locations 36427 | -4/Factory | Identified exit to DSF 36457 | -4/Factory | Discovered new exit (range 7) 36533 | -4/Factory | Repaired Cld. VTOL Module 36562 | -4/Factory | Repaired Nuclear Pulse Array 36712 | -4/Factory | Identified exit to DSF 36731 | -4/Factory | Identified exit to Upper Caves 36731 | -4/Factory | Identified exit to Extension 36823 | -4/Factory | Garrison activated, responded to threat 36915 | -4/Factory | Loaded intel: 8 recycling unit locations 36935 | -4/Factory | Scrapoids reinforcements arrived? 37009 | -4/Factory | Incoming investigation squad redirected 37099 | -4/Factory | Spotted B-86 Titan 37114 | -4/Factory | Discovered new exit (range 10) 37139 | -4/Factory | Discovered new exit (range 11) 37386 | -4/Factory | Entered Extension 37480 | -4/Extension | Lost 3 allies 37509 | -4/Extension | Lost 4 parts (2n1u1w) 37552 | -4/Extension | Lost 3 parts (1p2u) 37586 | -4/Extension | Scrapoids reinforcements arrived? 37593 | -4/Extension | Incoming investigation squad redirected 37622 | -4/Extension | Rescued a captive Derelict 37624 | -4/Extension | Rescued a captive Derelict 37683 | -4/Extension | Energy Cycler disabled 37683 | -4/Extension | Rescued a captive Derelict 37684 | -4/Extension | Rescued a captive Derelict 37684 | -4/Extension | Rescued a captive Derelict 37685 | -4/Extension | Rescued a captive Derelict 37700 | -4/Extension | Rescued a captive Derelict 37758 | -4/Extension | Lost 3 allies 37886 | -4/Extension | First assault squad dispatched 37912 | -4/Extension | Incoming assault squad redirected 38089 | -4/Extension | Build established: Commander-Sprinter 38104 | -4/Extension | Spotted B-86 Titan 38215 | -4/Extension | Lost 17 allies 38279 | -4/Extension | Discovered new exit (range 19) 38284 | -4/Extension | Extracted ID and sensor layout for unrecognized location from A7's data core 38292 | -4/Extension | Entered Research 38292 | -3/Research | Evolved 2 slots: Power x1, Utility x1 38293 | -3/Research | Identified exit to Testing 38294 | -3/Research | Identified exit to Armory 38297 | -3/Research | Loaded intel: 117 machine locations 38298 | -3/Research | Loaded intel: 22 terminal locations 38443 | -3/Research | Spotted B-86 Titan 38492 | -3/Research | Found Prototype Processor 38497 | -3/Research | Discovered new exit (range 13) 38511 | -3/Research | Identified Exp. Signal Interpreter 38512 | -3/Research | Entered Testing 38581 | -3/Testing | Build established: Hacker-Mutant 38655 | -3/Testing | Adv. Hacking Suite fried by hacking feedback 38671 | -3/Testing | Found Prototype Protection 38683 | -3/Testing | Identified Centrium Heavy Armor Plating 38779 | -3/Testing | Found Prototype Leg 38779 | -3/Testing | Identified Myomer Exoskeleton 38848 | -3/Testing | Local machine network offline 38876 | -3/Testing | Found Prototype Launcher 38882 | -3/Testing | Lost 4 parts (2n2u) 38882 | -3/Testing | Discovered new exit (range 15) 38907 | -3/Testing | Found Prototype Energy Cannon 38907 | -3/Testing | Identified Imp. Potential Cannon 38919 | -3/Testing | Identified exit to Research 38919 | -3/Testing | Entered Research 38919 | -2/Research | Evolved 2 slots: Propulsion x1, Utility x1 38981 | -2/Research | Build established: Infiltrator-Ninja 39011 | -2/Research | Targeted by mysterious "MATRIX" hacker. 39109 | -2/Research | Spotted B-90 Cyclops 39124 | -2/Research | Identified exit to Quarantine 39207 | -2/Research | Identified Z-bomb Delivery System 39209 | -2/Research | Lost 3 parts (1p2n) 39495 | -2/Research | Lost 7 parts (1p2n4u) 39512 | -2/Research | Entered Quarantine 39622 | -2/Quarantine | Spotted Fortress 39635 | -2/Quarantine | Discovered new exit (range 6) 39635 | -2/Quarantine | Discovered new exit (range 6) 39636 | -2/Quarantine | Identified exit to Protoforge 39636 | -2/Quarantine | Entered Protoforge 39718 | -2/Protoforge | Superfortress began startup sequence 39718 | -2/Protoforge | Spotted Hotshot 39727 | -2/Protoforge | Spotted Hotshot 39729 | -2/Protoforge | Spotted Hotshot 39857 | -2/Protoforge | Spotted SKR-2 39857 | -2/Protoforge | Spotted SKR-2 39857 | -2/Protoforge | Spotted SKR-2 39867 | -2/Protoforge | UFD initiated attack on Protoforge (Readiness: Very Low) 39867 | -2/Protoforge | Loaded intel: 3 recycling unit locations 39880 | -2/Protoforge | Spotted EXE-6 39881 | -2/Protoforge | Spotted EXE-6 39903 | -2/Protoforge | Optimus greeted in Protoforge 39905 | -2/Protoforge | Found Prototype Ballistic Gun 39905 | -2/Protoforge | Identified Cep. XC Strikerail 39915 | -2/Protoforge | Found Prototype Processor 39915 | -2/Protoforge | Identified Exp. Armor Integrity Analyzer 39952 | -2/Protoforge | Build established: Hacker-Ninja 39957 | -2/Protoforge | Found Prototype Device 39957 | -2/Protoforge | Identified Exp. Kinecellerator 39973 | -2/Protoforge | Imp. System Shield fried by hacking feedback 39986 | -2/Protoforge | Found Cep. XC Strikerail 40012 | -2/Protoforge | Spotted EXE-6 40012 | -2/Protoforge | Spotted EXE-6 40023 | -2/Protoforge | Destroyed EXE-6 40025 | -2/Protoforge | Fabricated Combat Drone Bay? 40032 | -2/Protoforge | Spotted AP7-3 40032 | -2/Protoforge | Destroyed EXE-6 40039 | -2/Protoforge | Found Prototype Processor 40039 | -2/Protoforge | Identified Exp. Core Analyzer 40043 | -2/Protoforge | Found Exp. Core Analyzer 40064 | -2/Protoforge | Lost 4 allies 40069 | -2/Protoforge | Spotted AP7-3 40125 | -2/Protoforge | Destroyed AP7-3 40128 | -2/Protoforge | Lost 3 parts (1p2u) 40141 | -2/Protoforge | Found Cep. XC Strikerail 40145 | -2/Protoforge | Found Prototype Energy Gun 40145 | -2/Protoforge | Identified Enh. Gamma Rifle 40163 | -2/Protoforge | Spotted Executioner 40182 | -2/Protoforge | Spotted Striker 40182 | -2/Protoforge | Spotted Executioner 40212 | -2/Protoforge | Destroyed Executioner 40218 | -2/Protoforge | Spotted Striker 40219 | -2/Protoforge | Spotted Striker 40228 | -2/Protoforge | Spotted Executioner 40235 | -2/Protoforge | Destroyed Executioner 40245 | -2/Protoforge | Lost 3 parts (1p1n1u) 40247 | -2/Protoforge | Destroyed Executioner 40267 | -2/Protoforge | Lost 23 allies 40320 | -2/Protoforge | Destroyed 9 combat bots 40332 | -2/Protoforge | Spotted Hotshot 40333 | -2/Protoforge | Spotted Hotshot 40333 | -2/Protoforge | Spotted Hotshot 40351 | -2/Protoforge | Lost 3 allies 40425 | -2/Protoforge | Spotted Overlord 40425 | -2/Protoforge | Spotted Decapitator 40428 | -2/Protoforge | Build established: Scavenger-Sprinter 40429 | -2/Protoforge | Spotted Decapitator 40430 | -2/Protoforge | Spotted Decapitator 40430 | -2/Protoforge | Spotted Decapitator 40435 | -2/Protoforge | Spotted Executioner 40467 | -2/Protoforge | Spotted Executioner 40472 | -2/Protoforge | Destroyed Executioner 40479 | -2/Protoforge | Lost 5 parts (1p2n2w) 40479 | -2/Protoforge | Spotted Executioner 40480 | -2/Protoforge | Spotted Executioner 40482 | -2/Protoforge | Core integrity fell below 50% 40482 | -2/Protoforge | Found Prototype Processor 40482 | -2/Protoforge | Identified Exp. Targeting Computer 40512 | -2/Protoforge | Spotted Striker 40512 | -2/Protoforge | Spotted Striker 40524 | -2/Protoforge | Destroyed Striker 40532 | -2/Protoforge | Lost 4 allies 40571 | -2/Protoforge | Found Scrap Suit 40598 | -2/Protoforge | Lost 3 allies 40607 | -2/Protoforge | Lost 6 parts (1p2n3u) 40618 | -2/Protoforge | Spotted Executioner 40624 | -2/Protoforge | Spotted Striker 40626 | -2/Protoforge | Destroyed Striker 40666 | -2/Protoforge | Spotted Hotshot 40668 | -2/Protoforge | Spotted Hotshot 40670 | -2/Protoforge | Spotted Hotshot 40671 | -2/Protoforge | Spotted Hotshot 40681 | -2/Protoforge | Destroyed Hotshot 40695 | -2/Protoforge | Spotted Executioner 40695 | -2/Protoforge | Spotted Striker 40696 | -2/Protoforge | Spotted Executioner 40713 | -2/Protoforge | Found Exp. Core Analyzer 40715 | -2/Protoforge | Found Exp. Targeting Computer 40733 | -2/Protoforge | Destroyed Striker 40753 | -2/Protoforge | Destroyed Executioner 40756 | -2/Protoforge | Lost 10 allies 40764 | -2/Protoforge | Found Exp. Targeting Computer 40766 | -2/Protoforge | Found Exp. Core Analyzer 40799 | -2/Protoforge | Spotted Executioner 40802 | -2/Protoforge | Found Exp. Targeting Computer 40805 | -2/Protoforge | Spotted Hotshot 40811 | -2/Protoforge | Destroyed Hotshot 40828 | -2/Protoforge | Spotted Striker 40833 | -2/Protoforge | Spotted Striker 40858 | -2/Protoforge | Build established: Scavenger-Mutant 40858 | -2/Protoforge | Spotted Executioner 40866 | -2/Protoforge | Spotted Striker 40866 | -2/Protoforge | Spotted Striker 40878 | -2/Protoforge | Core integrity fell below 20% 40882 | -2/Protoforge | Spotted Striker 40884 | -2/Protoforge | Discovered new exit (range 16) 40889 | -2/Protoforge | Entered Access 40889 | -1/Access | Evolved 2 slots: Propulsion x1, Weapon x1 40912 | -1/Access | Lost 6 parts (2p4u) 40961 | -1/Access | Spotted Striker 40963 | -1/Access | Spotted Striker 41016 | -1/Access | Spotted B-99 Colossus 41085 | -1/Access | Spotted Executioner 41087 | -1/Access | Spotted Executioner 41092 | -1/Access | Core integrity fell below 50% 41103 | -1/Access | Core integrity fell below 20% 41109 | -1/Access | Destroyed by Executioner with Helical Railgun Last Messages --------------- 41078_ Dropped Quantum Reactor+. 41079_ Penetrated by Slug. 41079_ Centrium Medium Armor Plating destroyed. 41084_ Adv. System Shield destroyed. 41086_ Graphene Brace destroyed. 41086_ Penetrated by Slug. 41086_ Impulse Thruster Array+ destroyed. 41090_ Slammed into Executioner. 41092_ Executioner Prototype Leg blasted off. 41092_ Executioner knocked back. 41095_ Penetrated by Slug. 41095_ S-43 Plague destroyed. 41095_ Penetrated by Slug. 41095_ Acquired 3 matter. 41098_ K-01 Serf destroyed. 41098_ Critical hit (Burn: +37). 41102_ Slug penetrates Wall. 41102_ Penetrated by Slug. 41102_ Slug penetrates Wall. 41109_ Penetrated by Slug. Map ----- +----------------------------------------------------+ | ??????????????????????????????????????? | | ??????????????????????????????????????? | | ??????????????????????????????????????? | | ??????????????????????????????????????? | | ??????????????????????????????????????? | | ??????????????????????????????????????? | | ??????????????????????????????????????? | | ??????????????????????????????????????? | | ??????????????????????????????????????? | | ????????????????????????????? ???????? | | ???????????????????????????? ???????? | | ??????????????????????????? ???????? | | ?????????????????????????? ????????? | | ????????????????????????? ?????????? | | ??????????############### ??????????? | | ??????????# ????????????? | | ??????????# ?????????????? | | ??????????# ??????????????? | | ??????????# ???????????????? | | ??????????# ????????????????? | | ??????????# ?????????????????? | | ??????????# ??????????????????? | | ??????????# #???????????????????? | | ??????????# #???????????????????? | | ??????????# w #???????????????????? | | ??????????# @ #??????###+#????????? | | ??????????# #?????[ ?????????? | | ??????????# #???? ????????? | | ??????????# #??? ?????????? | | ??????????# #?? ???????????# | | ??????????# A#? ?????????????# | | ########### K # ??????????????# | | # # + ????????????????# | | # # #?????????????????# | | #" # g #?????????????????# | | #"" # #?????????????????# | | #"" !# g #?????????????????# | | #"" # #?????????????????# | | #"" #s R#?????????????????# | | #"T + ##############????# | | #"" # # #????# | | #"" # # #????# | | #"" # s # #????# | | #"" # Eg# #??### | | #" # s Egg# #??#" | | # # % # #??#"" | | # ; g= #??#"" | | # # # * #??#"" | | ########### # % #??#"" | | ??????????# # #??#"T | +----------------------------------------------------+ Best States ------------- Heat Dissipation 136 Coolant Potential 120 Energy Generation 61 Energy Capacity 1020 Matter Stores 300 Matter Capacity 300 Sight Range 23 Robot Scan Range 16 Terrain Scan Range 16 Terrain Scan Density 210 ECM Strength 2 Jamming Range 12 Cloak Strength 2 Armor Coverage 450 Core Shielding 30 Propulsion Shielding 90 Weapon Shielding 90 Melee Speed Boost 30 Evasion (%) 77 Targeting Accuracy 36 Melee Accuracy 14 Core Analysis 12 Armor Integrity Analysis 50 Recoil Reduction 2 Kinecelleration 66 Salvage Targeting 4 Offensive Hacking 25 Defensive Hacking 26 Authchip Count 1 Item Schematics ----------------- Hcp. Storage Unit | -10/Materials | Hacked Med. Storage Unit | -10/Materials | Hacked Cld. VTOL Module | -6/Factory | Hacked Microactuators | -6/Factory | Scanalyzed Combat Drone Bay | -6/Data Miner | Free Lgt. Regenerative Plating | -6/Data Miner | Free Enh. Flexi-carbon Leg | -6/Data Miner | Free Prc. Matter Filter | -6/Data Miner | Free Plasma Sword | -6/Data Miner | Free Centrium Wheel | -6/Data Miner | Free Adv. Power Amplifier | -6/Data Miner | Free Phase Gun | -6/Data Miner | Free Myomer Leg | -6/Data Miner | Free Nova Cannon | -6/Data Miner | Free Assault Drone Bay | -5/Zhirov | Free Exp. Heat Sink | -5/Zhirov | Free Exp. Optical Array | -5/Zhirov | Free Imp. Arc Thrower | -5/Zhirov | Free Robot Schematics ------------------ R-10 Processor | -6/Data Miner | Free B-48 Gladiator | -6/Data Miner | Free E-15 Imp | -6/Data Miner | Free C-35 Carver | -6/Data Miner | Free Fabricated ------------ Cld. VTOL Module | x1 | -6/Factory | Authchip Cld. VTOL Module | x1 | -5/Factory | Authchip Adv. Hacking Suite | x1 | -5/Factory | Preloaded Cld. VTOL Module | x1 | -5/Factory | Authchip Cld. VTOL Module | x1 | -5/Factory | Authchip Combat Drone Bay | x1 | -2/Protoforge Repaired ---------- Mak. Flight Unit | 15% | -6/Factory Cld. Cesium-ion Thruster | 4% | -6/Factory Adv. Sensor Array | 16% | -6/Factory Cld. Cesium-ion Thruster | 75% | -5/Factory Seismic Detector | 5% | -5/Factory Cld. VTOL Module | 36% | -4/Factory Nuclear Pulse Array | 25% | -4/Factory Studied --------- Rocket Launcher | -6/Factory | Hacked Mic. Fission Core | -4/Factory | Hacked Nuclear Pulse Array | -4/Factory | Hacked Q-thruster | -2/Research | Hacked Impulse Thruster Array | -2/Research | Hacked Mic. Antimatter Reactor | -2/Research | Hacked Impulse Thruster | -2/Quarantine | Hacked Quantum Reactor | -2/Quarantine | Hacked Alien Tech Used ----------------- Integrated Reactor Achievements -------------- Bending The Rules Fine I'll Do It Myself Infodabbler Inventory Pressure Max Potential Origins Party Time The Better Part Of Valor We Are One Challenges ------------ None Game ------ Seed ExpertDirectedFilter Manual? 0 Play Time 07:23:31 Cumulative 195.5 hours Start 2026.02.18 @ 21:07:51 End 2026.02.20 @ 13:52:24 Sessions 11 Manual Loads 0 Difficulty Rogue Special Mode None Game No. 71 Rogue 71 Adventurer 0 Explorer 0 Win Type - Total 9 Types 7/0/1/1/0/0/0/0/0/0 Lore% 66 Gallery% 63 Achievement% 56 Wizard Run 0 Options --------- Layout 0 ASCII 0 Keyboard 0 Movement Arrows Keybinds 0 Fullscreen 2 Font 18/Terminus Map View 76x50 Zoom Use 0% Tactical HUD 1 Map Filters NONE Filters NONE Steam 1 RUN: 4f264186-87f7-4e56-864d-9dd25e7e66f1